[Event "ROU-ch Open 2021"]
[Site "Iasi"]
[Date "2021.04.24"]
[Round "8.11"]
[White "Ghimpu, Samuel-Timotei"]
[Black "Stepanencu, Nicodim-Cosmin"]
[Result "1-0"]
[ECO "B87"]
[WhiteElo "2315"]
[BlackElo "2104"]
[Annotator "NA"]
[PlyCount "59"]
[EventDate "2021.04.19"]
[EventType "swiss"]
[EventCountry "ROU"]
[SourceTitle "playchess.com"]
[Source "ChessBase"]
[SourceQuality "1"]
[TimeControl "5400+30"]

1. e4 {[%emt 0:00:00]} c5 {[%emt 0:00:00]} 2. Nf3 {[%emt 0:00:00]} d6 {[%emt 0:00:00]} 3. d4 {[%emt 0:00:00]} cxd4 {[%emt 0:00:00]} 4. Nxd4 {[%emt 0:00:02]} Nf6 {[%emt 0:00:00]} 5. Nc3 {[%emt 0:00:04]} a6 {[%emt 0:00:00]} 6. Bc4 {[%emt 0:00:04]} e6 {[%emt 0:02:28]} 7. Bb3 {[%emt 0:00:06]} b5 {[%emt 0:00:53]} 8. O-O {[%emt 0:00:07]} Qb6 {[%emt 0:03:12]} 9. Re1 {[%emt 0:08:12]} Be7 {[%emt 0:10:56]} 10. Be3 {[%emt 0:03:52]} Qb7 {[%emt 0:00:06]} 11. a3 {[%emt 0:18:27]} Nbd7 {[%emt 0:09:12]} 12. Qf3 {[%emt 0:00:00]} O-O {[%emt 0:18:05]} 13. Qg3 {[%emt 0:00:52]} Re8 {[%emt 0:00:45]} 14. Nf3 {[%emt 0:10:06]} Qc7 {[%emt 0:34:27]} 15. Rad1 {[%emt 0:02:41]} Ne5 {[%emt 0:01:42]} 16. Nd4 {[%emt 0:17:58]} Bf8 {[%emt 0:06:23]} 17. f4 {[%emt 0:15:39]} Nc4 {[%emt 0:01:45]} 18. Bxc4 {[%emt 0:00:54]} Qxc4 {[%emt 0:00:17]} 19. e5 {[%emt 0:00:40]} Nd7 {[%emt 0:03:54]} 20. exd6 {[%emt 0:00:37]} Bxd6 {[%emt 0:02:30]} 21. Ndxb5 {[%emt 0:01:46]} Bf8 {[%emt 0:03:07]} 22. Nd6 {[%emt 0:00:56]} Bxd6 {[%emt 0:00:01]} 23. Rxd6 {[%emt 0:00:07]} Qc7 {[%emt 0:00:59]} 24. Red1 {[%emt 0:00:06]} Nf8 {[%emt 0:00:20]} 25. Ne4 {[%emt 0:03:33]} Ng6 {[%emt 0:00:08]} 26. f5 {[%emt 0:00:16]} exf5 {[%emt 0:00:52]} 27. Rxg6 {[%emt 0:00:04]} Qxg3 {[%emt 0:00:03]} 28. Nf6+ {[%emt 0:00:03]} Kh8 {[%emt 0:00:45]} 29. Rxg3 {[%emt 0:00:01]} gxf6 {[%emt 0:00:41]} 30. Bd4 1-0

[Event "ROU-ch Open 2021"]
[Site "Iasi"]
[Date "2021.04.24"]
[Round "8.13"]
[White "Daianu, Cristian-Clement"]
[Black "Nevednichy, Vladislav"]
[Result "1/2-1/2"]
[ECO "B42"]
[WhiteElo "2234"]
[BlackElo "2533"]
[Annotator "ChessBase"]
[PlyCount "67"]
[EventDate "2021.04.19"]
[EventType "swiss"]
[EventCountry "ROU"]
[SourceTitle "playchess.com"]
[Source "ChessBase"]
[SourceQuality "1"]
[TimeControl "5400+30"]

1. e4 {[%emt 0:05:52]} c5 {[%emt 0:00:00]} 2. Nf3 {[%emt 0:00:11]} e6 {[%emt 0:00:00]} 3. d4 {[%emt 0:00:06]} cxd4 {[%emt 0:00:00]} 4. Nxd4 {[%emt 0:00:06]} a6 {[%emt 0:00:00]} 5. Bd3 {[%emt 0:02:02]} Bc5 {[%emt 0:00:00]} 6. Nb3 {[%emt 0:04:50]} Ba7 {[%emt 0:00:01]} 7. f4 {[%emt 0:02:27]} d6 {[%emt 0:10:03]} 8. Qf3 {[%emt 0:02:23]} Nc6 {[%emt 0:00:13]} 9. Be3 {[%emt 0:01:59]} Bxe3 {[%emt 0:03:03]} 10. Qxe3 {[%emt 0:00:04]} Nf6 {[%emt 0:00:17]} 11. O-O {[%emt 0:03:26]} e5 {[%emt 0:02:32]} 12. Nc3 {[%emt 0:06:04]} exf4 {[%emt 0:19:48]} 13. Qxf4 {[%emt 0:00:50]} O-O {[%emt 0:00:27]} 14. Nd5 {[%emt 0:03:35]} Nxd5 {[%emt 0:02:10]} 15. exd5 {[%emt 0:06:39]} Ne5 {[%emt 0:00:06]} 16. Rad1 {[%emt 0:01:10]} Bd7 {[%emt 0:03:51]} 17. Kh1 {[%emt 0:08:25]} Qb6 {[%emt 0:17:19]} 18. Nd4 {[%emt 0:07:54]} g6 {[%emt 0:02:17]} 19. b3 {[%emt 0:09:15]} Rae8 {[%emt 0:04:31]} 20. h3 {[%emt 0:03:03]} Qa5 {[%emt 0:03:55]} 21. Nf3 {[%emt 0:04:04]} Nxf3 {[%emt 0:04:20]} 22. Qxf3 {[%emt 0:04:27]} Re5 {[%emt 0:04:51]} 23. Qf6 {[%emt 0:04:51]} Rxd5 {[%emt 0:03:13]} 24. Bc4 {[%emt 0:01:39]} Rf5 {[%emt 0:00:08]} 25. Rxf5 {[%emt 0:00:13]} Qxf5 {[%emt 0:02:19]} 26. Qxf5 {[%emt 0:00:07]} Bxf5 {[%emt 0:00:04]} 27. Rxd6 {[%emt 0:00:07]} Bxc2 {[%emt 0:06:11]} 28. Bd5 {[%emt 0:00:32]} b5 {[%emt 0:02:05]} 29. Rxa6 {[%emt 0:00:20]} Rd8 {[%emt 0:00:02]} 30. Bc6 {[%emt 0:03:43]} b4 {[%emt 0:00:19]} 31. a3 {[%emt 0:01:59]} bxa3 {[%emt 0:00:23]} 32. Rxa3 {[%emt 0:00:03]} Rd6 {[%emt 0:01:28]} 33. Bf3 {[%emt 0:00:26]} Bd1 {[%emt 0:02:40]} 34. Bxd1 {[%emt 0:00:37]} 1/2-1/2

[Event "ROU-ch Open 2021"]
[Site "Iasi"]
[Date "2021.04.24"]
[Round "8.14"]
[White "Zubcu, Vlad-George"]
[Black "Ognean, Mihnea-Ionut"]
[Result "1-0"]
[ECO "B11"]
[WhiteElo "2168"]
[BlackElo "2298"]
[Annotator "NA"]
[PlyCount "73"]
[EventDate "2021.04.19"]
[EventType "swiss"]
[EventCountry "ROU"]
[SourceTitle "playchess.com"]
[Source "ChessBase"]
[SourceQuality "1"]
[TimeControl "5400+30"]

1. e4 {[%emt 0:00:00]} c6 {[%emt 0:00:00]} 2. Nc3 {[%emt 0:00:00]} d5 {[%emt 0:00:01]} 3. Nf3 {[%emt 0:00:00]} Nf6 {[%emt 0:01:52]} 4. e5 {[%emt 0:03:13]} Ne4 {[%emt 0:00:05]} 5. d4 {[%emt 0:00:03]} Nxc3 {[%emt 0:00:22]} 6. bxc3 {[%emt 0:00:05]} c5 {[%emt 0:00:05]} 7. Be3 {[%emt 0:03:45]} c4 {[%emt 0:06:52]} 8. Be2 {[%emt 0:00:31]} Nc6 {[%emt 0:01:05]} 9. O-O {[%emt 0:01:27]} Bg4 {[%emt 0:14:28]} 10. Ng5 {[%emt 0:07:46]} Bxe2 {[%emt 0:00:08]} 11. Qxe2 {[%emt 0:00:01]} e6 {[%emt 0:00:21]} 12. f4 {[%emt 0:16:29]} Be7 {[%emt 0:08:05]} 13. Nh3 {[%emt 0:00:33]} Qa5 {[%emt 0:01:16]} 14. Bd2 {[%emt 0:02:30]} Qa4 {[%emt 0:02:45]} 15. f5 {[%emt 0:03:30]} Qxc2 {[%emt 0:15:50]} 16. f6 {[%emt 0:00:46]} gxf6 {[%emt 0:02:36]} 17. exf6 {[%emt 0:00:06]} Bd6 {[%emt 0:01:45]} 18. Ng5 {[%emt 0:00:39]} Nd8 {[%emt 0:05:15]} 19. Rac1 {[%emt 0:04:56]} Qg6 {[%emt 0:01:36]} 20. h4 {[%emt 0:01:06]} h5 {[%emt 0:09:16]} 21. Bf4 {[%emt 0:02:47]} Bf8 {[%emt 0:02:34]} 22. Qb2 {[%emt 0:02:00]} Kd7 {[%emt 0:12:41]} 23. Nf3 {[%emt 0:00:09]} Qxf6 {[%emt 0:02:57]} 24. Ne5+ {[%emt 0:01:21]} Kc8 {[%emt 0:00:30]} 25. Bg5 {[%emt 0:00:07]} Qg7 {[%emt 0:00:25]} 26. Bxd8 {[%emt 0:00:01]} f5 {[%emt 0:01:50]} 27. Bg5 {[%emt 0:00:42]} Bd6 {[%emt 0:00:06]} 28. Rce1 {[%emt 0:01:02]} Kc7 {[%emt 0:00:24]} 29. Re2 {[%emt 0:01:11]} Rhe8 {[%emt 0:00:25]} 30. Rb1 {[%emt 0:00:23]} Rab8 {[%emt 0:00:38]} 31. Qb5 {[%emt 0:00:20]} Bxe5 {[%emt 0:00:50]} 32. Rxe5 {[%emt 0:00:16]} Qd7 {[%emt 0:00:04]} 33. Qa5+ {[%emt 0:00:14]} b6 {[%emt 0:01:47]} 34. Qxa7+ {[%emt 0:00:04]} Rb7 {[%emt 0:00:02]} 35. Qa3 {[%emt 0:00:10]} Qd6 {[%emt 0:00:21]} 36. Qa4 {[%emt 0:00:47]} Qc6 {[%emt 0:00:13]} 37. Qd1 {[%emt 0:00:09]} 1-0

[Event "ROU-ch Open 2021"]
[Site "Iasi"]
[Date "2021.04.24"]
[Round "8.15"]
[White "Ignat, Matei-Marius"]
[Black "Gheorghiu, Calin"]
[Result "1-0"]
[ECO "B51"]
[WhiteElo "1978"]
[BlackElo "2283"]
[Annotator "NA"]
[PlyCount "69"]
[EventDate "2021.04.19"]
[EventType "swiss"]
[EventCountry "ROU"]
[SourceTitle "playchess.com"]
[Source "ChessBase"]
[SourceQuality "1"]
[TimeControl "5400+30"]

1. e4 {[%emt 0:00:00]} c5 {[%emt 0:00:00]} 2. Nf3 {[%emt 0:00:00]} d6 {[%emt 0:00:00]} 3. Bb5+ {[%emt 0:00:00]} Nd7 {[%emt 0:00:00]} 4. a4 {[%emt 0:00:00]} Ngf6 {[%emt 0:01:06]} 5. Nc3 {[%emt 0:00:19]} g6 {[%emt 0:00:21]} 6. O-O {[%emt 0:03:13]} Bg7 {[%emt 0:01:33]} 7. a5 {[%emt 0:02:22]} a6 {[%emt 0:00:22]} 8. Be2 {[%emt 0:00:39]} O-O {[%emt 0:01:09]} 9. d4 {[%emt 0:00:58]} cxd4 {[%emt 0:01:27]} 10. Qxd4 {[%emt 0:01:48]} Qc7 {[%emt 0:03:31]} 11. h3 {[%emt 0:20:36]} b5 {[%emt 0:14:57]} 12. axb6 {[%emt 0:01:23]} Nxb6 {[%emt 0:01:25]} 13. Be3 {[%emt 0:23:18]} Rb8 {[%emt 0:03:26]} 14. Qd3 {[%emt 0:18:53]} Nfd7 {[%emt 0:03:25]} 15. Bd4 {[%emt 0:03:02]} Nc5 {[%emt 0:28:11]} 16. Qe3 {[%emt 0:01:33]} Bb7 {[%emt 0:03:37]} 17. Nd2 {[%emt 0:02:08]} Bxd4 {[%emt 0:02:41]} 18. Qxd4 {[%emt 0:00:04]} e5 {[%emt 0:07:12]} 19. Qe3 {[%emt 0:01:49]} f5 {[%emt 0:06:18]} 20. f4 {[%emt 0:10:29]} Rbe8 {[%emt 0:03:17]} 21. exf5 {[%emt 0:03:08]} exf4 {[%emt 0:02:44]} 22. Qxf4 {[%emt 0:00:17]} Rxf5 {[%emt 0:00:03]} 23. Qg3 {[%emt 0:01:59]} Rfe5 {[%emt 0:05:03]} 24. Bf3 {[%emt 0:00:39]} Bxf3 {[%emt 0:00:32]} 25. Nxf3 {[%emt 0:00:29]} Re3 {[%emt 0:00:28]} 26. Rfe1 {[%emt 0:01:00]} Nc4 {[%emt 0:01:37]} 27. Rxe3 {[%emt 0:02:24]} Nxe3 {[%emt 0:00:05]} 28. Re1 {[%emt 0:00:01]} Qa7 {[%emt 0:03:39]} 29. Qf2 {[%emt 0:00:47]} Qe7 {[%emt 0:01:42]} 30. Nd5 {[%emt 0:00:34]} Nxd5 {[%emt 0:00:02]} 31. Rxe7 {[%emt 0:00:06]} Rxe7 {[%emt 0:00:03]} 32. Qd4 {[%emt 0:00:42]} Ne3 {[%emt 0:01:29]} 33. Qxd6 {[%emt 0:00:24]} Rd7 {[%emt 0:00:09]} 34. Qxc5 {[%emt 0:00:51]} Rd1+ {[%emt 0:00:05]} 35. Kf2 {[%emt 0:00:15]} 1-0

[Event "ROU-ch Open 2021"]
[Site "Iasi"]
[Date "2021.04.24"]
[Round "8.16"]
[White "Isfan, Ioan-Marius"]
[Black "Albu, George"]
[Result "0-1"]
[ECO "B07"]
[WhiteElo "2263"]
[BlackElo "2050"]
[Annotator "NA"]
[PlyCount "72"]
[EventDate "2021.04.19"]
[EventType "swiss"]
[EventCountry "ROU"]
[SourceTitle "playchess.com"]
[Source "ChessBase"]
[SourceQuality "1"]
[TimeControl "5400+30"]

1. d4 {[%emt 0:00:00]} Nf6 {[%emt 0:19:22]} 2. Nf3 {[%emt 0:00:00]} g6 {[%emt 0:00:24]} 3. Nbd2 {[%emt 0:00:00]} Bg7 {[%emt 0:00:15]} 4. e4 {[%emt 0:00:00]} d6 {[%emt 0:00:04]} 5. Bd3 {[%emt 0:00:00]} O-O {[%emt 0:00:12]} 6. O-O {[%emt 0:00:00]} Nc6 {[%emt 0:00:14]} 7. Re1 {[%emt 0:00:13]} e5 {[%emt 0:00:12]} 8. c3 {[%emt 0:00:17]} Nh5 {[%emt 0:00:30]} 9. Nb3 {[%emt 0:02:20]} Bg4 {[%emt 0:01:12]} 10. Be3 {[%emt 0:00:37]} exd4 {[%emt 0:08:36]} 11. cxd4 {[%emt 0:01:43]} d5 {[%emt 0:00:08]} 12. h3 {[%emt 0:02:01]} Bc8 {[%emt 0:05:55]} 13. e5 {[%emt 0:11:05]} f6 {[%emt 0:02:52]} 14. exf6 {[%emt 0:19:20]} Qxf6 {[%emt 0:01:26]} 15. Bg5 {[%emt 0:00:12]} Qf7 {[%emt 0:06:57]} 16. Rc1 {[%emt 0:00:38]} Nf4 {[%emt 0:08:41]} 17. Rxc6 {[%emt 0:04:36]} Nxh3+ {[%emt 0:00:45]} 18. gxh3 {[%emt 0:00:04]} bxc6 {[%emt 0:00:48]} 19. Nbd2 {[%emt 0:06:56]} Be6 {[%emt 0:04:23]} 20. Kh2 {[%emt 0:09:32]} Rae8 {[%emt 0:10:02]} 21. Be3 {[%emt 0:00:27]} Qd7 {[%emt 0:01:03]} 22. Ng5 {[%emt 0:00:55]} Qd6+ {[%emt 0:02:27]} 23. Kh1 {[%emt 0:01:30]} Bf5 {[%emt 0:02:32]} 24. Bxf5 {[%emt 0:05:26]} Rxf5 {[%emt 0:00:13]} 25. Rg1 {[%emt 0:00:15]} Qd7 {[%emt 0:07:40]} 26. Qg4 {[%emt 0:06:11]} c5 {[%emt 0:04:00]} 27. Nb3 {[%emt 0:06:11]} c4 {[%emt 0:00:13]} 28. Nc5 {[%emt 0:00:05]} Qd6 {[%emt 0:00:22]} 29. h4 {[%emt 0:00:51]} Bh6 {[%emt 0:07:08]} 30. Nge4 {[%emt 0:04:12]} Qf8 {[%emt 0:02:13]} 31. Ng3 {[%emt 0:02:20]} Rf7 {[%emt 0:01:27]} 32. Nd7 {[%emt 0:04:11]} Qe7 {[%emt 0:00:46]} 33. Nf5 {[%emt 0:00:35]} Rxf5 {[%emt 0:00:38]} 34. Bxh6 {[%emt 0:01:23]} Qxd7 {[%emt 0:00:10]} 35. h5 {[%emt 0:00:03]} Qe6 {[%emt 0:00:30]} 36. Bf4 {[%emt 0:00:47]} Qe4+ {[%emt 0:00:15]} 0-1

[Event "ROU-ch Open 2021"]
[Site "Iasi"]
[Date "2021.04.24"]
[Round "8.17"]
[White "Coca, Cristi-Iulian"]
[Black "Nastore, Pavel-Alexandru"]
[Result "1-0"]
[ECO "A05"]
[WhiteElo "2153"]
[BlackElo "2256"]
[Annotator "NA"]
[PlyCount "67"]
[EventDate "2021.04.19"]
[EventType "swiss"]
[EventCountry "ROU"]
[SourceTitle "playchess.com"]
[Source "ChessBase"]
[SourceQuality "1"]
[TimeControl "5400+30"]

1. Nf3 {[%emt 0:00:00]} Nf6 {[%emt 0:00:00]} 2. g3 {[%emt 0:00:04]} e6 {[%emt 0:00:46]} 3. Bg2 {[%emt 0:00:06]} a6 {[%emt 0:00:44]} 4. c4 {[%emt 0:05:29]} b5 {[%emt 0:00:04]} 5. b3 {[%emt 0:13:07]} Bb7 {[%emt 0:00:07]} 6. O-O {[%emt 0:00:40]} Be7 {[%emt 0:00:40]} 7. Bb2 {[%emt 0:00:31]} O-O {[%emt 0:00:26]} 8. Qc2 {[%emt 0:04:21]} d6 {[%emt 0:01:54]} 9. Ng5 {[%emt 0:03:32]} Bxg2 {[%emt 0:00:17]} 10. Bxf6 {[%emt 0:00:51]} g6 {[%emt 0:00:28]} 11. Nxe6 {[%emt 0:06:19]} Bxf6 {[%emt 0:45:39]} 12. Nxd8 {[%emt 0:00:13]} Bxf1 {[%emt 0:00:03]} 13. Kxf1 {[%emt 0:19:05]} Bxa1 {[%emt 0:01:02]} 14. Qe4 {[%emt 0:10:00]} Ra7 {[%emt 0:02:05]} 15. Nc6 {[%emt 0:03:05]} Nxc6 {[%emt 0:00:12]} 16. Qxc6 {[%emt 0:00:02]} Raa8 {[%emt 0:04:25]} 17. Na3 {[%emt 0:02:03]} Bb2 {[%emt 0:05:34]} 18. Nc2 {[%emt 0:00:12]} bxc4 {[%emt 0:08:47]} 19. bxc4 {[%emt 0:04:12]} Ra7 {[%emt 0:07:19]} 20. d3 {[%emt 0:08:08]} a5 {[%emt 0:00:59]} 21. a4 {[%emt 0:00:30]} Rb8 {[%emt 0:00:27]} 22. Ne3 {[%emt 0:00:25]} h5 {[%emt 0:10:19]} 23. h4 {[%emt 0:01:04]} Rb6 {[%emt 0:02:30]} 24. Qe8+ {[%emt 0:00:24]} Kg7 {[%emt 0:00:06]} 25. Nd5 {[%emt 0:00:41]} Rba6 {[%emt 0:00:41]} 26. Qb8 {[%emt 0:03:15]} Bd4 {[%emt 0:03:58]} 27. Nxc7 {[%emt 0:01:37]} Rb6 {[%emt 0:00:07]} 28. Qd8 {[%emt 0:00:13]} Rab7 {[%emt 0:02:44]} 29. Ne8+ {[%emt 0:01:50]} Kh7 {[%emt 0:00:06]} 30. Nxd6 {[%emt 0:00:20]} Rb8 {[%emt 0:00:27]} 31. Qd7 {[%emt 0:00:17]} Bg7 {[%emt 0:01:18]} 32. c5 {[%emt 0:01:24]} Rb1+ {[%emt 0:00:49]} 33. Kg2 {[%emt 0:00:07]} Rc1 {[%emt 0:00:09]} 34. c6 {[%emt 0:00:23]} 1-0

[Event "ROU-ch Open 2021"]
[Site "Iasi"]
[Date "2021.04.24"]
[Round "8.19"]
[White "Negrean, Andrei"]
[Black "Martian, Dragos-Daniel"]
[Result "0-1"]
[ECO "B42"]
[WhiteElo "1904"]
[BlackElo "2198"]
[Annotator "NA"]
[PlyCount "196"]
[EventDate "2021.04.19"]
[EventType "swiss"]
[EventCountry "ROU"]
[SourceTitle "playchess.com"]
[Source "ChessBase"]
[SourceQuality "1"]
[TimeControl "5400+30"]

1. e4 {[%emt 0:00:00]} c5 {[%emt 0:00:44]} 2. Nf3 {[%emt 0:00:00]} e6 {[%emt 0:00:04]} 3. d4 {[%emt 0:00:00]} cxd4 {[%emt 0:00:01]} 4. Nxd4 {[%emt 0:00:14]} a6 {[%emt 0:00:01]} 5. Bd3 {[%emt 0:00:05]} Nc6 {[%emt 0:00:17]} 6. Nxc6 {[%emt 0:00:45]} dxc6 {[%emt 0:00:19]} 7. O-O {[%emt 0:01:38]} e5 {[%emt 0:00:11]} 8. a4 {[%emt 0:09:20]} a5 {[%emt 0:02:34]} 9. Be3 {[%emt 0:03:14]} Nf6 {[%emt 0:00:29]} 10. f3 {[%emt 0:01:09]} Be6 {[%emt 0:01:16]} 11. Nd2 {[%emt 0:06:16]} Bd6 {[%emt 0:02:50]} 12. Qe2 {[%emt 0:08:36]} Qe7 {[%emt 0:01:46]} 13. Nc4 {[%emt 0:01:01]} Bxc4 {[%emt 0:00:26]} 14. Bxc4 {[%emt 0:00:19]} O-O {[%emt 0:01:11]} 15. Bg5 {[%emt 0:09:53]} h6 {[%emt 0:01:00]} 16. Bh4 {[%emt 0:00:29]} Rfd8 {[%emt 0:03:21]} 17. Rae1 {[%emt 0:13:01]} Bc5+ {[%emt 0:00:30]} 18. Kh1 {[%emt 0:01:19]} g5 {[%emt 0:02:25]} 19. Bf2 {[%emt 0:01:19]} Bxf2 {[%emt 0:00:51]} 20. Qxf2 {[%emt 0:00:19]} Qb4 {[%emt 0:02:46]} 21. Bb3 {[%emt 0:01:01]} c5 {[%emt 0:07:28]} 22. Qe2 {[%emt 0:25:05]} Rd2 {[%emt 0:02:06]} 23. Qe3 {[%emt 0:00:24]} Rad8 {[%emt 0:00:37]} 24. Qc3 {[%emt 0:04:30]} Qxc3 {[%emt 0:07:49]} 25. bxc3 {[%emt 0:01:01]} Nd7 {[%emt 0:02:04]} 26. Rd1 {[%emt 0:02:27]} Nb6 {[%emt 0:00:13]} 27. Bd5 {[%emt 0:00:00]} Rxd1 {[%emt 0:02:01]} 28. Rxd1 {[%emt 0:00:00]} Rd7 {[%emt 0:01:14]} 29. c4 {[%emt 0:04:28]} Nxc4 {[%emt 0:03:42]} 30. Rb1 {[%emt 0:00:20]} Nd6 {[%emt 0:01:44]} 31. Kg1 {[%emt 0:00:54]} Kf8 {[%emt 0:03:45]} 32. c4 {[%emt 0:00:57]} Ke7 {[%emt 0:00:44]} 33. Kf2 {[%emt 0:00:07]} Kd8 {[%emt 0:03:28]} 34. h4 {[%emt 0:00:48]} gxh4 {[%emt 0:18:10]} 35. Rh1 {[%emt 0:00:11]} Nc8 {[%emt 0:00:15]} 36. Rxh4 {[%emt 0:00:12]} Rd6 {[%emt 0:08:15]} 37. Rh1 {[%emt 0:01:36]} Rb6 {[%emt 0:00:59]} 38. Bxf7 {[%emt 0:00:35]} Rb4 {[%emt 0:03:17]} 39. Rxh6 {[%emt 0:00:17]} Rxa4 {[%emt 0:00:14]} 40. g4 {[%emt 0:00:37]} Ra2+ {[%emt 0:03:37]} 41. Kg3 {[%emt 0:00:14]} Ra1 {[%emt 0:00:33]} 42. Rh8+ {[%emt 0:02:25]} Kc7 {[%emt 0:01:33]} 43. Be6 {[%emt 0:00:28]} Ne7 {[%emt 0:02:30]} 44. Ra8 {[%emt 0:00:24]} a4 {[%emt 0:02:44]} 45. g5 {[%emt 0:00:33]} a3 {[%emt 0:01:26]} 46. Bf5 {[%emt 0:00:40]} b5 {[%emt 0:04:19]} 47. cxb5 {[%emt 0:00:36]} Kb7 {[%emt 0:00:49]} 48. Ra4 {[%emt 0:00:12]} c4 {[%emt 0:00:53]} 49. Be6 {[%emt 0:01:25]} c3 {[%emt 0:00:50]} 50. Bb3 {[%emt 0:00:11]} Kb6 {[%emt 0:00:58]} 51. Rc4 {[%emt 0:01:03]} Kxb5 {[%emt 0:01:46]} 52. Rxc3 {[%emt 0:00:09]} Kb4 {[%emt 0:00:03]} 53. Rd3 {[%emt 0:00:15]} Ng6 {[%emt 0:00:46]} 54. Kh2 {[%emt 0:01:12]} Nf4 {[%emt 0:00:30]} 55. Re3 {[%emt 0:00:06]} a2 {[%emt 0:01:00]} 56. Bxa2 {[%emt 0:01:22]} Rxa2+ {[%emt 0:00:01]} 57. Kh1 {[%emt 0:01:07]} Rg2 {[%emt 0:00:44]} 58. Re1 {[%emt 0:00:32]} Rxg5 {[%emt 0:00:08]} 59. Re3 {[%emt 0:00:12]} Kc4 {[%emt 0:00:27]} 60. Ra3 {[%emt 0:00:44]} Kd4 {[%emt 0:00:17]} 61. Kh2 {[%emt 0:00:21]} Rg2+ {[%emt 0:00:25]} 62. Kh1 {[%emt 0:00:06]} Rd2 {[%emt 0:00:25]} 63. Kg1 {[%emt 0:00:32]} Nd3 {[%emt 0:00:11]} 64. Kh1 {[%emt 0:00:08]} Ke3 {[%emt 0:00:19]} 65. f4 {[%emt 0:00:09]} Kxf4 {[%emt 0:01:04]} 66. Ra4 {[%emt 0:00:13]} Kg3 {[%emt 0:00:52]} 67. Ra1 {[%emt 0:00:08]} Kf4 {[%emt 0:00:34]} 68. Ra4 {[%emt 0:00:05]} Nc5 {[%emt 0:00:09]} 69. Ra8 {[%emt 0:00:08]} Nxe4 {[%emt 0:00:12]} 70. Rf8+ {[%emt 0:00:06]} Ke3 {[%emt 0:00:44]} 71. Re8 {[%emt 0:00:10]} Nf2+ {[%emt 0:01:07]} 72. Kg2 {[%emt 0:00:16]} e4 {[%emt 0:00:06]} 73. Kf1 {[%emt 0:00:23]} Nd3 {[%emt 0:00:23]} 74. Rh8 {[%emt 0:00:11]} Nf4 {[%emt 0:00:16]} 75. Ke1 {[%emt 0:00:09]} Ra2 {[%emt 0:00:32]} 76. Kd1 {[%emt 0:00:08]} Ra1+ {[%emt 0:00:30]} 77. Kc2 {[%emt 0:00:04]} Kf3 {[%emt 0:00:08]} 78. Rb8 {[%emt 0:00:28]} e3 {[%emt 0:00:10]} 79. Rb3 {[%emt 0:00:06]} Kf2 {[%emt 0:00:17]} 80. Rb4 {[%emt 0:00:07]} Ng2 {[%emt 0:00:24]} 81. Rb8 {[%emt 0:00:09]} e2 {[%emt 0:00:19]} 82. Rf8+ {[%emt 0:00:05]} Kg1 {[%emt 0:00:08]} 83. Re8 {[%emt 0:00:07]} e1=Q {[%emt 0:00:10]} 84. Rxe1+ {[%emt 0:00:05]} Rxe1 {[%emt 0:00:10]} 85. Kd3 {[%emt 0:00:08]} Kf2 {[%emt 0:00:14]} 86. Kd4 {[%emt 0:00:04]} Nf4 {[%emt 0:00:10]} 87. Kc5 {[%emt 0:00:11]} Rd1 {[%emt 0:00:06]} 88. Kc4 {[%emt 0:00:05]} Ke3 {[%emt 0:00:06]} 89. Kc5 {[%emt 0:00:05]} Ke4 {[%emt 0:00:04]} 90. Kc6 {[%emt 0:00:05]} Rd5 {[%emt 0:00:08]} 91. Kb6 {[%emt 0:00:04]} Kd4 {[%emt 0:00:06]} 92. Kc6 {[%emt 0:00:06]} Kc4 {[%emt 0:00:01]} 93. Kb6 {[%emt 0:00:10]} Rc5 {[%emt 0:00:06]} 94. Kb7 {[%emt 0:00:06]} Kb5 {[%emt 0:00:06]} 95. Ka7 {[%emt 0:00:07]} Rc7+ {[%emt 0:00:12]} 96. Ka8 {[%emt 0:00:05]} Kb6 {[%emt 0:00:07]} 97. Kb8 {[%emt 0:00:05]} Rc1 {[%emt 0:00:06]} 98. Ka8 {[%emt 0:00:04]} Rc8# {[%emt 0:00:06]} 0-1

[Event "ROU-ch Open 2021"]
[Site "Iasi"]
[Date "2021.04.24"]
[Round "8.20"]
[White "Magold, Filip"]
[Black "Panc, Samuel"]
[Result "1-0"]
[ECO "B28"]
[WhiteElo "2065"]
[BlackElo "1937"]
[Annotator "NA"]
[PlyCount "57"]
[EventDate "2021.04.19"]
[EventType "swiss"]
[EventCountry "ROU"]
[SourceTitle "playchess.com"]
[Source "ChessBase"]
[SourceQuality "1"]
[TimeControl "5400+30"]

1. e4 {[%emt 0:00:00]} c5 {[%emt 0:05:33]} 2. Nf3 {[%emt 0:00:00]} a6 {[%emt 0:00:06]} 3. c3 {[%emt 0:00:00]} d5 {[%emt 0:00:04]} 4. exd5 {[%emt 0:00:50]} Qxd5 {[%emt 0:00:06]} 5. d4 {[%emt 0:00:14]} e6 {[%emt 0:00:06]} 6. Be3 {[%emt 0:00:51]} cxd4 {[%emt 0:00:30]} 7. cxd4 {[%emt 0:00:18]} Nc6 {[%emt 0:00:11]} 8. Nc3 {[%emt 0:00:38]} Qd8 {[%emt 0:00:57]} 9. a3 {[%emt 0:00:12]} Nf6 {[%emt 0:00:21]} 10. Bd3 {[%emt 0:00:47]} h6 {[%emt 0:01:26]} 11. O-O {[%emt 0:01:00]} Ne7 {[%emt 0:02:18]} 12. Ne5 {[%emt 0:02:01]} g6 {[%emt 0:05:50]} 13. Qf3 {[%emt 0:06:15]} Bg7 {[%emt 0:00:04]} 14. Rfe1 {[%emt 0:07:02]} O-O {[%emt 0:00:35]} 15. Bxh6 {[%emt 0:05:38]} Qxd4 {[%emt 0:00:31]} 16. Rad1 {[%emt 0:03:04]} Qa7 {[%emt 0:00:38]} 17. h4 {[%emt 0:12:31]} b5 {[%emt 0:03:18]} 18. Ne4 {[%emt 0:03:14]} Nxe4 {[%emt 0:00:06]} 19. Bxe4 {[%emt 0:00:05]} Rb8 {[%emt 0:01:18]} 20. Rd8 {[%emt 0:01:08]} f5 {[%emt 0:01:26]} 21. Rxf8+ {[%emt 0:04:01]} Kxf8 {[%emt 0:01:38]} 22. Bxg7+ {[%emt 0:01:39]} Kxg7 {[%emt 0:00:07]} 23. Qc3 {[%emt 0:02:32]} Kg8 {[%emt 0:02:36]} 24. Rd1 {[%emt 0:03:36]} Qb6 {[%emt 0:01:50]} 25. Bf3 {[%emt 0:00:56]} a5 {[%emt 0:05:36]} 26. b4 {[%emt 0:00:26]} axb4 {[%emt 0:00:28]} 27. axb4 {[%emt 0:00:13]} Kf8 {[%emt 0:00:25]} 28. h5 {[%emt 0:00:46]} g5 {[%emt 0:00:41]} 29. h6 {[%emt 0:00:34]} 1-0

[Event "ROU-ch Open 2021"]
[Site "Iasi"]
[Date "2021.04.25"]
[Round "9.9"]
[White "Ghimpu, Samuel-Timotei"]
[Black "Jianu, Vlad-Cristian"]
[Result "1/2-1/2"]
[ECO "C18"]
[WhiteElo "2315"]
[BlackElo "2532"]
[Annotator "RC"]
[PlyCount "38"]
[EventDate "2021.04.19"]
[EventType "swiss"]
[EventCountry "ROU"]
[SourceTitle "playchess.com"]
[Source "ChessBase"]
[SourceQuality "1"]
[TimeControl "5400+30"]

1. e4 {[%emt 0:00:00]} e6 {[%emt 0:00:00]} 2. d4 {[%emt 0:00:30]} d5 {[%emt 0:00:00]} 3. Nc3 {[%emt 0:00:56]} Bb4 {[%emt 0:00:59]} 4. e5 {[%emt 0:00:33]} c5 {[%emt 0:00:06]} 5. a3 {[%emt 0:00:11]} Bxc3+ {[%emt 0:00:05]} 6. bxc3 {[%emt 0:00:04]} Qa5 {[%emt 0:00:08]} 7. Bd2 {[%emt 0:12:45]} Qa4 {[%emt 0:00:16]} 8. Qb1 {[%emt 0:00:11]} c4 {[%emt 0:01:21]} 9. Ne2 {[%emt 0:02:16]} Nc6 {[%emt 0:00:09]} 10. Nf4 {[%emt 0:01:06]} Nge7 {[%emt 0:10:05]} 11. Nh5 {[%emt 0:06:39]} Rg8 {[%emt 0:00:05]} 12. Be2 {[%emt 0:01:14]} Bd7 {[%emt 0:00:07]} 13. O-O {[%emt 0:02:00]} O-O-O {[%emt 0:00:05]} 14. Bg4 {[%emt 0:03:06]} Rdf8 {[%emt 0:02:25]} 15. Re1 {[%emt 0:00:22]} Kb8 {[%emt 0:02:11]} 16. Bh3 {[%emt 0:05:11]} Ka8 {[%emt 0:00:46]} 17. f4 {[%emt 0:17:27]} Bc8 18. Kh1 {[%emt 0:00:10]} h6 {[%emt 0:00:01]} 19. Re2 {[%emt 0:00:04]} b5 {[%emt 0:00:24]} 1/2-1/2